lending/lending_fUSD_20260204
["ID","MTS","AMOUNT","RATE_DAILY","PERIOD"]
[404476732,1770184239779,-2353.0,0.00016643,2]
[404476733,1770184239788,-500.0,0.00016643,2]
[404476734,1770184239798,-500.0,0.00016643,2]
[404476735,1770184239807,-825.0,0.00016643,2]
[404476736,1770184239816,-500.0,0.00016643,2]
[404476737,1770184239825,-500.0,0.00016643,2]
[404476738,1770184239834,-150.0,0.00016643,2]
[404476739,1770184239843,-1027.0,0.00016643,2]
[404476740,1770184239852,-500.0,0.00016643,2]
[404476741,1770184239861,-150.0,0.00016675,2]
[404476742,1770184239871,-500.0,0.00016675,2]
[404476743,1770184239881,-3187.76596997,0.0001668,2]
[404476744,1770184239890,-500.0,0.00016685,2]
[404476745,1770184239900,-791.0,0.00016685,2]
[404476746,1770184239909,-500.0,0.00016685,2]
[404476747,1770184239918,-150.75663524,0.00016685,2]
[404476748,1770184239972,-349.24336476,0.00016685,2]
[404476749,1770184239982,-500.0,0.00016698,2]
[404476750,1770184239992,-500.0,0.00016698,2]
[404476751,1770184240001,-500.0,0.00016698,2]
[404476752,1770184240011,-980.0,0.00016698,2]
[404476753,1770184240021,-375.80507611,0.00016698,2]
[404476754,1770184240032,-1010.19492389,0.00016698,2]
[404476755,1770184240043,-786.0,0.00016698,2]
[404476756,1770184240053,-527.0,0.00016698,2]
[404476757,1770184240062,-500.0,0.00016698,2]
[404476758,1770184240071,-500.0,0.00016698,2]
[404476759,1770184240080,-573.19485992,0.00016698,2]
[404476760,1770184240090,-884.0,0.00016698,2]
[404476761,1770184240099,-2353.0,0.00016698,2]
[404476762,1770184240109,-500.0,0.00016698,2]
[404476764,1770184240118,-500.0,0.00016698,2]
[404476766,1770184240128,-825.0,0.00016698,2]
[404476768,1770184240137,-500.0,0.00016698,2]
[404476770,1770184240147,-500.0,0.00016698,2]
[404476772,1770184240156,-150.0,0.00016698,2]
[404476774,1770184240166,-1027.0,0.00016698,2]
[404476776,1770184240175,-500.0,0.00016698,2]
[404476778,1770184240184,-2373.80797086,0.00016721,2]
[404476780,1770184240196,-8496.39368514,0.00016721,2]
[404476782,1770184240205,-150.0,0.00016729,2]
[404476784,1770184240214,-394.93149623,0.00016729,2]
[404476786,1770184240224,-500.0,0.0001674,2]
[404476788,1770184240234,-791.0,0.0001674,2]
[404476790,1770184240243,-500.0,0.0001674,2]
[404476792,1770184240252,-500.0,0.0001674,2]
[404476794,1770184240261,-160.0,0.0001674,2]
[404476796,1770184240271,-500.0,0.00016753,2]
[404476798,1770184240280,-500.0,0.00016753,2]
[404476800,1770184240289,-500.0,0.00016753,2]
[404476802,1770184240298,-980.0,0.00016753,2]
[404476804,1770184240308,-1386.0,0.00016753,2]
[404476806,1770184240317,-786.0,0.00016753,2]
[404476808,1770184240326,-527.0,0.00016753,2]
[404476810,1770184240335,-500.0,0.00016753,2]
[404476812,1770184240344,-21.02222065,0.00016753,2]
[404476814,1770184240357,-478.97777935,0.00016753,2]
[404476816,1770184240366,-884.0,0.00016753,2]
[404476818,1770184240374,-34.96604888,0.00016753,2]
[404476838,1770184241053,-441.6269999,0.00014326,2]
[404476839,1770184241145,-58.3730001,0.00014326,2]
[404476840,1770184241155,-2206.0,0.00014326,2]
[404476841,1770184241164,-572.0,0.00014326,2]
[404476842,1770184241173,-631.0,0.00014326,2]
[404476843,1770184241184,-500.0,0.00014381,2]
[404476844,1770184241193,-2206.0,0.00014381,2]
[404476845,1770184241203,-572.0,0.00014381,2]
[404476846,1770184241212,-631.0,0.00014381,2]
[404476847,1770184241221,-500.0,0.00014436,2]
[404476848,1770184241230,-2206.0,0.00014436,2]
[404476849,1770184241242,-572.0,0.00014436,2]
[404476850,1770184241251,-631.0,0.00014436,2]
[404476851,1770184241261,-2206.0,0.0001449,2]
[404476852,1770184241271,-500.0,0.0001449,2]
[404476853,1770184241280,-572.0,0.0001449,2]
[404476854,1770184241291,-631.0,0.0001449,2]
[404476855,1770184241300,-2206.0,0.00014545,2]
[404476856,1770184241309,-572.0,0.00014545,2]
[404476857,1770184241319,-500.0,0.00014545,2]
[404476858,1770184241327,-631.0,0.00014545,2]
[404476859,1770184241337,-2206.0,0.000146,2]
[404476860,1770184241346,-572.0,0.000146,2]
[404476861,1770184241355,-500.0,0.000146,2]
[404476862,1770184241366,-631.0,0.000146,2]
[404476863,1770184241375,-2206.0,0.00014655,2]
[404476864,1770184241385,-572.0,0.00014655,2]
[404476865,1770184241394,-500.0,0.00014655,2]
[404476866,1770184241403,-631.0,0.00014655,2]
[404476867,1770184241413,-2206.0,0.0001471,2]
[404476868,1770184241423,-572.0,0.0001471,2]
[404476869,1770184241433,-500.0,0.0001471,2]
[404476870,1770184241444,-572.0,0.00014764,2]
[404476871,1770184241455,-2206.0,0.00014764,2]
[404476872,1770184241464,-500.0,0.00014764,2]
[404476873,1770184241474,-572.0,0.00014819,2]
[404476874,1770184241484,-2206.0,0.00014819,2]
[404476875,1770184241494,-500.0,0.00014819,2]
[404476876,1770184241504,-572.0,0.00014874,2]
[404476877,1770184241515,-2206.0,0.00014874,2]
[404476878,1770184241524,-319.22514368,0.00014874,2]
[404476879,1770184241533,-572.0,0.00014929,2]
[404476880,1770184241543,-2206.0,0.00014929,2]
[404476881,1770184241552,-572.0,0.00014984,2]
[404476882,1770184241562,-2318.03395112,0.00016753,2]
[404476883,1770184241571,-500.0,0.00016753,2]
[404476884,1770184241580,-500.0,0.00016753,2]
[404476885,1770184241589,-825.0,0.00016753,2]
[404476886,1770184241599,-608.89235453,0.00016753,2]
[404476887,1770184241609,-500.0,0.00016753,2]
[404476888,1770184241618,-150.0,0.00016753,2]
[404476889,1770184241628,-1027.0,0.00016753,2]
[404476890,1770184241638,-500.69925499,0.00016753,2]
[404476891,1770184241647,-166.8633284,0.00016784,2]
[404476892,1770184241656,-2500.0,0.00016792,2]
[404476893,1770184241666,-500.0,0.00016795,2]
[404476894,1770184241675,-791.0,0.00016795,2]
[404476895,1770184241685,-500.0,0.00016795,2]
[404476896,1770184241694,-500.0,0.00016795,2]
[404476897,1770184241703,-200.0,0.00016796,2]
[404476898,1770184241712,-500.0,0.00016796,2]
[404476899,1770184241721,-500.0,0.00016807,2]
[404476900,1770184241731,-500.0,0.00016807,2]
[404476901,1770184241740,-500.0,0.00016807,2]
[404476902,1770184241749,-1386.0,0.00016807,2]
[404476903,1770184241760,-786.0,0.00016807,2]
[404476904,1770184241769,-527.0,0.00016807,2]
[404476905,1770184241778,-500.0,0.00016807,2]
[404476906,1770184241789,-500.0,0.00016807,2]
[404476907,1770184241800,-884.0,0.00016807,2]
[404476908,1770184241809,-2353.0,0.00016807,2]
[404476909,1770184241819,-500.0,0.00016807,2]
[404476910,1770184241829,-192.17460847,0.00016807,2]
[404476911,1770184241838,-825.0,0.00016807,2]
[404476912,1770184241847,-500.0,0.00016807,2]
[404476913,1770184241857,-241.64782027,0.00016807,2]
[404476914,1770184241867,-1027.0,0.00016807,2]
[404476915,1770184241877,-151.0,0.00016833,2]
[404476916,1770184241887,-159.0,0.00016833,2]
[404476917,1770184241896,-163.01663403,0.00016833,2]
[404476918,1770184241906,-151.0,0.00016833,2]
[404476919,1770184241915,-151.0,0.00016833,2]
[404476920,1770184241924,-1503.0,0.00016833,2]
[404476921,1770184241934,-151.0,0.00016833,2]
[404476922,1770184241943,-151.0,0.00016833,2]
[404476923,1770184241952,-1503.0,0.00016833,2]
[404476924,1770184241961,-151.0,0.00016833,2]
[404476925,1770184241975,-151.0,0.00016833,2]
[404476926,1770184241985,-1503.0,0.00016833,2]
[404476927,1770184241994,-151.0,0.00016833,2]
[404476928,1770184242004,-151.0,0.00016833,2]
[404476929,1770184242015,-1503.0,0.00016833,2]
[404476930,1770184242025,-191.58690164,0.00016833,2]
[404476931,1770184242035,-1503.0,0.00016833,2]
[404476932,1770184242046,-151.0,0.00016833,2]
[404476933,1770184242056,-151.0,0.00016833,2]
[404476934,1770184242066,-151.0,0.00016833,2]
[404476935,1770184242075,-151.0,0.00016833,2]
[404476936,1770184242084,-151.0,0.00016833,2]
[404476937,1770184242094,-151.0,0.00016833,2]
[404476938,1770184242105,-151.0,0.00016833,2]
[404476939,1770184242114,-1503.0,0.00016833,2]
[404476940,1770184242123,-1503.0,0.00016833,2]
[404476941,1770184242132,-1503.0,0.00016833,2]
[404476942,1770184242142,-1503.0,0.00016833,2]
[404476943,1770184242151,-1503.0,0.00016833,2]
[404476944,1770184242161,-1503.0,0.00016833,2]
[404476945,1770184242170,-1503.0,0.00016833,2]
[404476946,1770184242179,-1503.0,0.00016833,2]
[404476947,1770184242189,-1503.0,0.00016833,2]
[404476948,1770184242198,-1503.0,0.00016833,2]
[404476949,1770184242208,-1503.0,0.00016833,2]
[404476950,1770184242217,-152.19,0.00016839,2]
[404476951,1770184242227,-500.0,0.0001685,2]
[404476952,1770184242236,-791.0,0.0001685,2]
[404476953,1770184242246,-500.0,0.0001685,2]
[404476954,1770184242255,-500.0,0.0001685,2]
[404476955,1770184242264,-200.0,0.00016851,2]
[404476956,1770184242273,-500.0,0.00016851,2]
[404476957,1770184242282,-3531.78627076,0.00016859,2]
[404476958,1770184242291,-500.0,0.00016862,2]
[404476959,1770184242490,-500.0,0.00016862,2]
[404476960,1770184242501,-500.0,0.00016862,2]
[404476961,1770184242512,-1386.0,0.00016862,2]
[404476962,1770184242521,-786.0,0.00016862,2]
[404476963,1770184242531,-527.0,0.00016862,2]
[404476964,1770184242542,-500.0,0.00016862,2]
[404476965,1770184242553,-500.0,0.00016862,2]
[404476966,1770184242563,-884.0,0.00016862,2]
[404476967,1770184242573,-2353.0,0.00016862,2]
[404476968,1770184242583,-500.0,0.00016862,2]
[404476969,1770184242599,-825.0,0.00016862,2]
[404476970,1770184242611,-500.0,0.00016862,2]
[404476971,1770184242622,-1027.0,0.00016862,2]
[404476972,1770184242632,-698.46348576,0.00016869,2]
[404476973,1770184242640,-4123.0271,0.00016899,2]
[404476974,1770184242650,-2500.0,0.000169,2]
[404476975,1770184242661,-500.0,0.00016904,2]
[404476976,1770184242670,-791.0,0.00016904,2]
[404476977,1770184242681,-500.0,0.00016904,2]
[404476978,1770184242690,-500.0,0.00016904,2]
[404476979,1770184242700,-200.0,0.00016906,2]
[404476980,1770184242709,-500.0,0.00016906,2]
[404476981,1770184242718,-500.0,0.00016917,2]
[404476982,1770184242729,-500.0,0.00016917,2]
[404476983,1770184242739,-500.0,0.00016917,2]
[404476984,1770184242748,-1386.0,0.00016917,2]
[404476985,1770184242757,-786.0,0.00016917,2]
[404476986,1770184242766,-527.0,0.00016917,2]
[404476987,1770184242775,-500.0,0.00016917,2]
[404476988,1770184242784,-500.0,0.00016917,2]
[404476989,1770184242793,-884.0,0.00016917,2]
[404476990,1770184242802,-2353.0,0.00016917,2]
[404476991,1770184242811,-247.64699965,0.00016917,2]
[404476992,1770184242820,-825.0,0.00016917,2]
[404476993,1770184242829,-500.0,0.00016917,2]
[404476994,1770184242838,-1027.0,0.00016917,2]
[404476995,1770184242847,-621.20778463,0.00016917,2]
[404476996,1770184242856,-277.63511856,0.00016917,2]
[404476997,1770184242867,-500.0,0.00016959,2]
[404476998,1770184242879,-791.0,0.00016959,2]
[404476999,1770184242890,-500.0,0.00016959,2]
[404477000,1770184242901,-500.0,0.00016959,2]
[404477001,1770184242910,-200.0,0.0001696,2]
[404477002,1770184242919,-500.0,0.0001696,2]
[404477003,1770184242930,-750.53,0.00016963,2]
[404477004,1770184242940,-237.3358,0.0001697,2]
[404477005,1770184242953,-12890.6206,0.0001697,2]
[404477006,1770184242963,-187.38563793,0.00016972,2]
[404477007,1770184242975,-505.46772774,0.00016972,2]
[404477008,1770184242985,-500.0,0.00016972,2]
[404477009,1770184242994,-1386.0,0.00016972,2]
[404477010,1770184243003,-786.0,0.00016972,2]
[404477011,1770184243014,-527.0,0.00016972,2]
[404477012,1770184243023,-500.0,0.00016972,2]
[404477013,1770184243033,-500.0,0.00016972,2]
[404477014,1770184243045,-884.0,0.00016972,2]
[404477015,1770184243054,-2353.0,0.00016972,2]
[404477016,1770184243064,-825.0,0.00016972,2]
[404477017,1770184243075,-500.0,0.00016972,2]
[404477018,1770184243084,-1027.0,0.00016972,2]
[404477019,1770184243093,-5888.0,0.00016994,2]
[404477020,1770184243103,-500.0,0.00017,7]
[404477022,1770184243112,-500.0,0.00017,7]
[404477025,1770184243121,-500.0,0.00017,7]
[404477028,1770184243130,-500.0,0.00017,7]
[404477031,1770184243139,-500.0,0.00017,7]
[404477034,1770184243149,-500.0,0.00017,7]
[404477037,1770184243158,-500.0,0.00017,7]
[404477040,1770184243167,-500.0,0.00017,7]
[404477042,1770184243177,-500.0,0.00017,7]
[404477044,1770184243186,-500.0,0.00017,7]
[404477046,1770184243195,-500.0,0.00017,7]
[404477048,1770184243204,-500.0,0.00017,7]
[404477050,1770184243216,-500.0,0.00017,7]
[404477052,1770184243225,-500.0,0.00017,7]
[404477054,1770184243234,-500.0,0.00017,7]
[404477055,1770184243244,-500.0,0.00017,7]
[404477056,1770184243253,-500.0,0.00017,7]
[404477057,1770184243262,-500.0,0.00017,7]
[404477058,1770184243271,-500.0,0.00017,7]
[404477059,1770184243282,-500.0,0.00017,7]
[404477060,1770184243292,-500.0,0.00017,7]
[404477061,1770184243302,-500.0,0.00017,7]
[404477062,1770184243311,-500.0,0.00017,7]
[404477063,1770184243321,-500.0,0.00017,7]
[404477064,1770184243331,-500.0,0.00017,7]
[404477065,1770184243343,-500.0,0.00017,7]
[404477066,1770184243352,-500.0,0.00017,7]
[404477067,1770184243361,-500.0,0.00017,7]
[404477068,1770184243370,-500.0,0.00017,7]
[404477069,1770184243380,-500.0,0.00017,7]
[404477070,1770184243389,-500.0,0.00017,7]
[404477071,1770184243398,-500.0,0.00017,7]
[404477072,1770184243407,-500.0,0.00017,7]
[404477073,1770184243417,-500.0,0.00017,7]
[404477074,1770184243425,-500.0,0.00017,7]
[404477075,1770184243435,-500.0,0.00017,7]
[404477076,1770184243444,-500.0,0.00017,7]
[404477077,1770184243453,-500.0,0.00017,7]
[404477078,1770184243462,-500.0,0.00017,7]
[404477079,1770184243473,-500.0,0.00017,7]
[404477080,1770184243482,-500.0,0.00017,7]
[404477081,1770184243492,-500.0,0.00017,7]
[404477082,1770184243502,-500.0,0.00017,7]
[404477083,1770184243513,-500.0,0.00017,7]
[404477084,1770184243524,-500.0,0.00017,7]
[404477085,1770184243533,-500.0,0.00017,7]
[404477086,1770184243543,-500.0,0.00017,7]
[404477087,1770184243552,-500.0,0.00017,7]
[404477088,1770184243562,-500.0,0.00017,7]
[404477089,1770184243571,-500.0,0.00017,7]
[404477090,1770184243581,-500.0,0.00017,7]
[404477091,1770184243590,-500.0,0.00017,7]
[404477092,1770184243599,-500.0,0.00017,7]
[404477093,1770184243608,-500.0,0.00017,7]
[404477094,1770184243619,-408.8,0.00017,7]
[404477095,1770184243628,-500.0,0.00017,7]
[404477096,1770184243637,-500.0,0.00017,7]
[404477097,1770184243646,-500.0,0.00017,7]
[404477098,1770184243655,-500.0,0.00017,7]
[404477099,1770184243664,-500.0,0.00017,7]
[404477100,1770184243672,-500.0,0.00017,7]
[404477101,1770184243687,-500.0,0.00017,7]
[404477102,1770184243702,-500.0,0.00017,7]
[404477103,1770184243711,-500.0,0.00017,7]
[404477104,1770184243721,-500.0,0.00017,7]
[404477105,1770184243730,-500.0,0.00017,7]
[404477106,1770184243741,-500.0,0.00017,7]
[404477107,1770184243753,-500.0,0.00017,7]
[404477108,1770184243763,-500.0,0.00017,7]
[404477109,1770184243774,-500.0,0.00017,7]
[404477110,1770184243784,-500.0,0.00017,7]
[404477111,1770184243795,-500.0,0.00017,7]
[404477112,1770184243805,-500.0,0.00017,7]
[404477113,1770184243815,-500.0,0.00017,7]
[404477114,1770184243825,-500.0,0.00017,7]
[404477115,1770184243834,-500.0,0.00017,7]
[404477116,1770184243843,-500.0,0.00017,7]
[404477117,1770184243852,-500.0,0.00017,7]
[404477118,1770184243862,-500.0,0.00017,7]
[404477119,1770184243871,-500.0,0.00017,7]
[404477120,1770184243880,-500.0,0.00017,7]
[404477121,1770184243889,-500.0,0.00017,7]
[404477122,1770184243898,-500.0,0.00017,7]
[404477123,1770184243907,-500.0,0.00017,7]
[404477124,1770184243916,-500.0,0.00017,7]
[404477125,1770184243925,-500.0,0.00017,7]
[404477126,1770184243936,-500.0,0.00017,7]
[404477127,1770184243946,-500.0,0.00017,7]
[404477128,1770184243956,-500.0,0.00017,7]
[404477129,1770184243965,-500.0,0.00017,7]
[404477130,1770184243979,-500.0,0.00017,7]
[404477131,1770184243990,-500.0,0.00017,7]
[404477132,1770184243999,-500.0,0.00017,7]
[404477133,1770184244008,-500.0,0.00017,7]
[404477134,1770184244018,-500.0,0.00017,7]
[404477135,1770184244029,-500.0,0.00017,7]
[404477136,1770184244039,-500.0,0.00017,7]
[404477137,1770184244052,-500.0,0.00017,7]
[404477138,1770184244072,-500.0,0.00017,7]
[404477139,1770184244090,-500.0,0.00017,7]
[404477140,1770184244099,-500.0,0.00017,7]
[404477141,1770184244109,-500.0,0.00017,7]
[404477142,1770184244118,-500.0,0.00017,7]
[404477143,1770184244128,-174.97,0.00017,7]
[404477144,1770184244137,-500.0,0.00017,7]
[404477145,1770184244147,-160.0,0.00017,7]
[404477146,1770184244157,-500.0,0.00017014,2]
[404477147,1770184244167,-500.0,0.00017014,2]
[404477148,1770184244176,-791.0,0.00017014,2]
[404477149,1770184244186,-500.0,0.00017014,2]
[404477150,1770184244195,-200.0,0.00017015,2]
[404477151,1770184244204,-500.0,0.00017015,2]
[404477152,1770184244215,-550.58242297,0.00017027,2]
[404477153,1770184244224,-1386.0,0.00017027,2]
[404477154,1770184244234,-786.0,0.00017027,2]
[404477155,1770184244243,-500.0,0.00017027,2]
[404477156,1770184244252,-527.0,0.00017027,2]
[404477157,1770184244262,-200.53013078,0.00017027,2]
[404477158,1770184244271,-884.0,0.00017027,2]
[404477159,1770184244280,-2353.0,0.00017027,2]
[404477160,1770184244290,-825.0,0.00017027,2]
[404477161,1770184244299,-500.0,0.00017027,2]
[404477162,1770184244308,-1027.0,0.00017027,2]
[404477163,1770184244317,-500.0,0.00017069,2]
[404477164,1770184244326,-500.0,0.00017069,2]
[404477165,1770184244335,-791.0,0.00017069,2]
[404477166,1770184244344,-500.0,0.00017069,2]
[404477167,1770184244353,-200.0,0.0001707,2]
[404477168,1770184244362,-507.32886496,0.0001707,2]
[404477169,1770184244371,-151.0,0.00017078,2]
[404477170,1770184244380,-1386.0,0.00017081,2]
[404477171,1770184244390,-786.0,0.00017081,2]
[404477172,1770184244399,-373.06790773,0.00017081,2]
[404477173,1770184244409,-527.0,0.00017081,2]
[404477174,1770184244418,-884.0,0.00017081,2]
[404477175,1770184244427,-2353.0,0.00017081,2]
[404477176,1770184244436,-825.0,0.00017081,2]
[404477177,1770184244445,-500.0,0.00017081,2]
[404477178,1770184244454,-1027.0,0.00017081,2]
[404477179,1770184244462,-159.58944175,0.00017086,2]
[404477180,1770184244471,-500.0,0.00017095,2]
[404477181,1770184244480,-605.59208121,0.00017099,2]
[404477182,1770184244489,-1428.38747117,0.00017099,2]
[404477183,1770184244499,-200.0,0.00017099,2]
[404477184,1770184244507,-500.0,0.00017099,2]
[404477185,1770184244516,-195.12483545,0.00017099,2]
[404477186,1770184244525,-209.40437684,0.00017099,2]
[404477187,1770184244537,-500.0,0.00017099,2]
[404477188,1770184244547,-322.6107,0.00017099,2]
[404477189,1770184244556,-500.0,0.00017099,2]
[404477190,1770184244564,-500.0,0.00017099,2]
[404477191,1770184244573,-500.0,0.00017099,2]
[404477192,1770184244583,-500.0,0.00017099,2]
[404477193,1770184244592,-500.0,0.00017099,2]
[404477194,1770184244601,-500.0,0.00017099,2]
[404477195,1770184244611,-500.0,0.00017099,2]
[404477196,1770184244620,-500.0,0.00017099,2]
[404477197,1770184244629,-151.0,0.00017099,2]
[404477198,1770184244638,-174.61919141,0.00017099,2]
[404477199,1770184244648,-500.0,0.00017099,2]
[404477200,1770184244658,-273.46262284,0.00017099,2]
[404477201,1770184244668,-209.40437684,0.00017099,2]
[404477202,1770184244679,-500.0,0.00017124,2]
[404477203,1770184244688,-500.0,0.00017124,2]
[404477204,1770184244698,-791.0,0.00017124,2]
[404477205,1770184244709,-500.0,0.00017124,2]
[404477206,1770184244720,-200.0,0.00017125,2]
[404477207,1770184244731,-1386.0,0.00017136,2]
[404477208,1770184244742,-786.0,0.00017136,2]
[404477209,1770184244751,-527.0,0.00017136,2]
[404477210,1770184244761,-884.0,0.00017136,2]
[404477211,1770184244770,-2353.0,0.00017136,2]
[404477212,1770184244779,-825.0,0.00017136,2]
[404477213,1770184244788,-500.0,0.00017136,2]
[404477214,1770184244798,-1027.0,0.00017136,2]
[404477215,1770184244807,-500.0,0.00017151,2]
[404477216,1770184244816,-217.15233878,0.00017154,2]
[404477217,1770184244826,-200.0,0.00017174,2]
[404477218,1770184244836,-1000.0,0.00017178,7]
[404477219,1770184244847,-500.0,0.00017178,2]
[404477220,1770184244856,-500.0,0.00017178,2]
[404477221,1770184244865,-791.0,0.00017178,2]
[404477222,1770184244875,-500.0,0.00017178,2]
[404477223,1770184244883,-200.0,0.0001718,2]
[404477224,1770184244893,-1000.0,0.0001718,2]
[404477225,1770184244902,-1386.0,0.00017191,2]
[404477226,1770184244912,-786.0,0.00017191,2]
[404477227,1770184244922,-527.0,0.00017191,2]
[404477228,1770184244932,-884.0,0.00017191,2]
[404477229,1770184244942,-2353.0,0.00017191,2]
[404477230,1770184244952,-825.0,0.00017191,2]
[404477231,1770184244961,-500.0,0.00017191,2]
[404477232,1770184244975,-1027.0,0.00017191,2]
[404477233,1770184244999,-3531.78627076,0.00017206,2]
[404477234,1770184245019,-225.18697532,0.00017209,2]
[404477235,1770184245032,-698.46348576,0.00017213,2]
[404477236,1770184245043,-500.0,0.00017233,2]
[404477237,1770184245054,-500.0,0.00017233,2]
[404477238,1770184245065,-791.0,0.00017233,2]
[404477239,1770184245076,-380.77068013,0.00017233,2]
[404477240,1770184245088,-203.03555142,0.00017234,2]
[404477241,1770184245099,-1386.0,0.00017246,2]
[404477242,1770184245113,-786.0,0.00017246,2]
[404477243,1770184245124,-527.0,0.00017246,2]
[404477244,1770184245135,-2353.0,0.00017246,2]
[404477245,1770184245146,-884.0,0.00017246,2]
[404477246,1770184245156,-825.0,0.00017246,2]
[404477247,1770184245165,-500.0,0.00017246,2]
[404477248,1770184245175,-1027.0,0.00017246,2]
[404477249,1770184245185,-1000.0,0.0001726,2]
[404477250,1770184245194,-356.9,0.00017262,2]
[404477251,1770184245203,-233.51889341,0.00017264,2]
[404477252,1770184245214,-677.13,0.0001728,2]
[404477253,1770184245223,-200.0,0.00017286,2]
[404477254,1770184245234,-500.0,0.00017288,2]
[404477255,1770184245246,-500.0,0.00017288,2]
[404477256,1770184245256,-791.0,0.00017288,2]
[404477257,1770184245266,-3187.76596997,0.0001729,2]
[404477258,1770184245276,-1386.0,0.00017301,2]
[404477259,1770184245287,-786.0,0.00017301,2]
[404477260,1770184245296,-527.0,0.00017301,2]
[404477261,1770184245307,-2353.0,0.00017301,2]
[404477263,1770184245316,-884.0,0.00017301,2]
[404477264,1770184245326,-825.0,0.00017301,2]
[404477265,1770184245335,-500.0,0.00017301,2]
[404477266,1770184245343,-1027.0,0.00017301,2]
[404477267,1770184245353,-200.0,0.00017316,2]
[404477268,1770184245362,-242.15909246,0.00017319,2]
[404477269,1770184245372,-500.0,0.00017333,2]
[404477270,1770184245380,-3000.0,0.0001734,2]
[404477271,1770184245390,-500.0,0.00017343,2]
[404477272,1770184245400,-500.0,0.00017343,2]
[404477273,1770184245409,-791.0,0.00017343,2]
[404477274,1770184245419,-1386.0,0.00017355,2]
[404477275,1770184245429,-786.0,0.00017355,2]
[404477276,1770184245439,-527.0,0.00017355,2]
[404477277,1770184245448,-2353.0,0.00017355,2]
[404477278,1770184245457,-884.0,0.00017355,2]
[404477279,1770184245466,-825.0,0.00017355,2]
[404477280,1770184245476,-500.0,0.00017355,2]
[404477281,1770184245486,-1027.0,0.00017355,2]
[404477282,1770184245495,-251.11897888,0.00017374,2]
[404477283,1770184245504,-168.0,0.00017376,2]
[404477284,1770184245514,-500.0,0.00017398,2]
[404477286,1770184245523,-500.0,0.00017398,2]
[404477288,1770184245532,-791.0,0.00017398,2]
[404477290,1770184245542,-1386.0,0.0001741,2]
[404477292,1770184245550,-786.0,0.0001741,2]
[404477294,1770184245560,-527.0,0.0001741,2]
[404477296,1770184245570,-2353.0,0.0001741,2]
[404477299,1770184245580,-884.0,0.0001741,2]
[404477302,1770184245589,-825.0,0.0001741,2]
[404477305,1770184245600,-500.0,0.0001741,2]
[404477307,1770184245610,-1027.0,0.0001741,2]
[404477309,1770184245620,-260.4103811,0.00017429,2]
[404477311,1770184245630,-1000.0,0.00017445,2]
[404477313,1770184245641,-1400.0,0.00017452,7]
[404477315,1770184245651,-500.0,0.00017452,2]
[404477317,1770184245659,-238.17361545,0.00017452,2]